Cogmind - Beta 16 @@@ ROGUE MODE // 2025.12.03 @ 16:57:19 Player: JuustuToug Result: Destroyed by D-53 Grenadier with Mini Grenade Launcher Performance ------------- Evolutions (0) 0 Regions Visited (2) 400 Robots Destroyed (19) 95 Value Destroyed (305) 305 Prototype IDs (0) 0 Alien Tech Used (0) 0 Bonus (-168) -168 TOTAL SCORE: 632 Bonus ------- Friendly Fire -168 Cogmind --------- Core Integrity 0/250 Matter 225/300 Energy 92/100 System Corruption 4% Temperature Cool (2) Movement Treading (160) Location -10/Mines Parts ------- > --- POWER (1) -------- (None) > --- PROPULSION (2) --- Light Treads Light Treads > --- UTILITY (2) ------ Large Storage Unit > --- WEAPON (2) ------- (None) > --- INVENTORY (15) --- Signal Interpreter Transport Network Coupler Hacking Suite Light Assault Rifle Grenade Launcher Grenade Launcher Peak State ------------ > --- POWER ------------ Light Ion Engine > --- PROPULSION ------- Light Treads Light Treads > --- UTILITY ---------- Small Storage Unit Seismic Detector > --- WEAPON ----------- EM Pulse Gun Light Assault Rifle > --- INVENTORY -------- Light Ion Engine Aluminum Leg Aluminum Leg Compact Wheel Improved Terrain Scanner Improved Terrain Scanner Medium Laser [Rating: 8] Favorites ----------- Power Ion Engine Engine Ion Engine Propulsion Light Treads Treads Light Treads Utility Large Storage Unit Device Seismic Detector Storage Large Storage Unit Processor Signal Interpreter Weapon EM Pulse Gun Energy Gun EM Pulse Gun Ballistic Gun Light Assault Rifle Impact Weapon Hammer Build | -11 -10 -10 ------- Run | Yrd Mat Min Slots Evolved . | . . . Power . | . . . Propulsion . | . . . Utility . | . . . Weapon . | . . . Parts Attached 25 | 7 10 8 Power 4 | 1 2 1 Engine 4 | 1 2 1 Core . | . . . Reactor . | . . . Propulsion 7 | 2 1 4 Treads 7 | 2 1 4 Leg . | . . . Wheel . | . . . Hover . | . . . Flight . | . . . Utility 5 | 2 3 . Device 1 | 1 . . Storage 3 | 1 2 . Processor 1 | . 1 . Hackware . | . . . Protection . | . . . Artifact . | . . . Weapon 9 | 2 4 3 Energy Gun 5 | 1 3 1 Energy Cannon . | . . . Ballistic Gun 3 | 1 . 2 Ballistic Cannon . | . . . Launcher . | . . . Special Weapon . | . . . Impact Weapon 1 | . 1 . Slashing Weapon . | . . . Piercing Weapon . | . . . Special Melee Weapon . | . . . Unidentified Prototypes . | . . . Parts Lost 13 | . 1 12 Power 2 | . . 2 Propulsion 3 | . . 3 Utility 1 | . . 1 Weapon 7 | . 1 6 Highest Loss Streak 7 | . 1 7 To Critical Strikes . | . . . Average Backups 12 | 4 14 10 Power 1 | . 1 . Propulsion 3 | 2 3 3 Utility 3 | . 4 3 Weapon 4 | . 5 4 Tool/Special . | . . . Unused Backups 14 | 1 8 5 Power 2 | . 2 . Propulsion 3 | . 3 . Utility 5 | 1 1 3 Weapon 3 | . 1 2 Tool/Special 1 | . 1 . Average Slot Usage (%) 99 | . 100 94 Engine 13 | . 14 12 Treads 28 | . 28 28 Device 13 | . 12 14 Storage 14 | . 14 14 Energy Gun 24 | . 26 15 Ballistic Gun 2 | . 1 7 Peak Build Rating 8 | 8 8 8 Average Rating 7 | 5 7 7 On Entrance 5 | . 7 8 Avg Prop Armor Cover (%) . | . . . Naked Turns . | . . . Heaviest Build 30 | 12 30 30 Greatest Support 40 | 40 40 40 Greatest Overweight (x) 1 | . . 1 Average Overweight (x) . | . . . Largest Inventory Capacity 15 | 8 15 15 Average Capacity 14 | 7 14 15 Most Carried 15 | 7 15 15 Average Carried 12 | 4 14 10 Final Capacity 15 | 8 15 15 Final Carried 14 | 6 14 6 Class Distribution -------------------- 100% | Mutant Dominant Class ---------------- Mutant | -10/Materials Mutant | -10/Mines Resources | -11 -10 -10 ----------- Run | Yrd Mat Min Matter Collected 465 | 281 160 24 Remotely . | . . . Salvage Created 579 | 135 421 23 Parts 46 | 11 33 2 Haulers Intercepted 2 | . 2 . Recyclers Shooed 1 | . 1 . Parts Field Recycled . | . . . Retrieved Matter . | . . . Parts Self-Destructed . | . . . Prevented . | . . . Parts Restored . | . . . Kills | -11 -10 -10 ------- Run | Yrd Mat Min Combat Hostiles Destroyed 7 | . 7 . Guns 5 | . 5 . AOE 2 | . 2 . Classes Destroyed 8 | 2 5 1 Builder 1 | . . 1 Tunneler 3 | 3 . . Hauler 2 | . 2 . Recycler 1 | 1 . . Operator 2 | . 2 . Watcher 3 | . 3 . Swarmer 3 | . 3 . Grunt 4 | . 4 . Best Kill Streak 4 | 2 4 1 Combat Bots Only 3 | . 3 . Max Kills in Single Turn 3 | 1 3 1 Gunslinging . | . . . Exploded 2 | . 2 . Melee . | . . . Uniques/NPCs Destroyed . | . . . Combat | -11 -10 -10 -------- Run | Yrd Mat Min Hostile Shots Fired 71 | . 22 49 Missed 11 | . 2 9 Hits 60 | . 20 40 Melee 2 | . . 2 Projectile 58 | . 20 38 AOE 30 | . . 30 Damage Taken 1648 | 48 212 1388 Core 251 | . 36 215 Absorbed by Shields . | . . . Core Remaining (%) 100 | 100 . . Volleys Fired 44 | 11 27 6 Largest 2 | 2 2 2 Hottest 80 | 60 80 80 Shots Fired 85 | 22 51 12 Gun 85 | 22 51 12 Cannon . | . . . Launcher . | . . . Special . | . . . Kinetic 31 | 11 15 5 Thermal 16 | . 11 5 Explosive . | . . . Electromagnetic 38 | 11 25 2 Robot Hit Streak 11 | 11 5 4 Robot Miss Streak 3 | 2 2 3 Penetration Max . | . . . Secondary Targets . | . . . Shots Hit Robots 58 | 16 34 8 Core Hits 29 | 5 19 5 Critical Kills . | . . . Critical Parts Destroyed . | . . . Critical Strikes 2 | . 2 . Burn 2 | . 2 . Melee Attacks 4 | . 1 3 Impact 4 | . 1 3 Slashing . | . . . Piercing . | . . . Sneak Attacks 1 | . . 1 Combat Hostiles . | . . . Follow-up Attacks . | . . . Damage Inflicted 967 | 238 562 167 Guns 669 | 163 432 74 Cannons . | . . . Explosions 205 | 75 130 . Melee 82 | . . 82 Ramming 11 | . . 11 Kinetic 167 | 57 82 28 Thermal 356 | 75 256 25 Explosive . | . . . Electromagnetic 351 | 106 224 21 Impact 82 | . . 82 Slashing . | . . . Piercing . | . . . Highest Corruption 4 | . 1 4 Average Corruption 1 | . 1 1 Corruption Purged . | . . . Corruption Blocked . | . . . Effects 9 | . 7 2 Message Errors 1 | . 1 . Matter Fused 3 | . 1 2 Heat Flow Errors 3 | . 3 . Energy Discharges 1 | . 1 . Data Loss (minor) 1 | . 1 . Overload Shots . | . . . Overflow Damage 6 | 6 . . Projectiles . | . . . Explosions 6 | 6 . . Melee . | . . . Knockbacks 1 | . . 1 Impact 1 | . . 1 Kinetic . | . . . Secondary . | . . . Self-Inflicted Damage 50 | 50 . . Shots 2 | 2 . . Rammed 1 | . . 1 Targets Rammed 1 | . . 1 Kicked . | . . . Crushed . | . . . Highest Temperature 277 | 40 277 27 Average Temperature 46 | 20 57 11 Received Heat Transfer 141 | . 105 36 Siege Activations . | . . . Martial Activations . | . . . Shielding Activations . | . . . Robots Disrupted . | . . . Combat Hostiles . | . . . Robots Corrupted . | . . . Combat Hostiles . | . . . Parts Fried . | . . . Impact Corruptions . | . . . Robots Melted . | . . . Combat Hostiles . | . . . Parts Melted 2 | . 2 . Heat Transferred 892 | 100 718 74 Parts Sabotaged . | . . . Parts Stolen . | . . . Parts Stripped . | . . . Power Chain Reactions 3 | 2 1 . Alert | -11 -10 -10 ------- Run | Yrd Mat Min Maximum Alert Level . | . . . Low Security (%) 100 | 100 100 100 Level 1 . | . . . Level 2 . | . . . Level 3 . | . . . Level 4 . | . . . Level 5 . | . . . High Security . | . . . Max Security . | . . . Peak Influence 81 | 5 81 5 Initial . | . . . Average 12 | 1 15 . Influence Increases 361 | 20 336 5 Destroy 0b10 Robot/C 140 | . 140 . Destroy 0b10 Robot/NC 60 | 20 35 5 Destroy Leader 40 | . 40 . Successful Hack 57 | . 57 . Disable Machine 15 | . 15 . Destroy Structure 4 | . 4 . Lose Combat Pursuer 45 | . 45 . Influence Decreases 361 | 20 336 5 Time Decay 349 | 20 324 5 Lost Part 5 | . 5 . Purge Threat 7 | . 7 . Squads Dispatched 3 | . 3 . Investigation 1 | . 1 . Extermination . | . . . Reinforcement 2 | . 2 . Assault . | . . . Garrison . | . . . Intercept . | . . . Searches Triggered . | . . . Construction Impeded . | . . . Haulers Reinforced . | . . . Active Scanning Responses . | . . . Cargo Convoy Interrupts . | . . . Stealth | -11 -10 -10 --------- Run | Yrd Mat Min Distress Signals . | . . . Communications Jammed . | . . . Distress Signals . | . . . Times Spotted 28 | . 16 12 Peak Tracking Total 7 | . 4 7 Tactical Retreats 2 | . 2 . Traps | -11 -10 -10 ------- Run | Yrd Mat Min Traps Triggered 2 | . 2 . Indirectly . | . . . Trap Hack Attempts . | . . . Triggered . | . . . Disarmed . | . . . Reprogrammed . | . . . Reused . | . . . Traps Extracted . | . . . Installed . | . . . Triggered . | . . . Machines | -11 -10 -10 ---------- Run | Yrd Mat Min Machines Disabled 1 | . 1 . Max in Single Turn 1 | . 1 . Machines Repaired . | . . . Machines Dismantled . | . . . Machines Sabotaged . | . . . Overloaded Fab Kills . | . . . Hacking | -11 -10 -10 --------- Run | Yrd Mat Min Machines Accessed 8 | . 8 . Terminals 6 | . 6 . Fabricators . | . . . Repair Stations . | . . . Recycling Units 2 | . 2 . Scanalyzers . | . . . Garrison Access . | . . . Total Hacks 28 | . 28 . Successful 14 | . 14 . Failed 14 | . 14 . Catastrophic 1 | . 1 . Database Lockouts . | . . . Manual 19 | . 19 . Terminals 23 | . 23 . Fabricators . | . . . Repair Stations . | . . . Recycling Units 5 | . 5 . Scanalyzers . | . . . Garrison Access . | . . . Terminal Hacks 5 | . 5 . Part Schematic 1 | . 1 . Terminal Index 1 | . 1 . Recycling Unit Index 1 | . 1 . Unreport Threat 1 | . 1 . Recall Investigation 1 | . 1 . Fabricator Hacks . | . . . Repair Station Hacks . | . . . Recycling Unit Hacks 2 | . 2 . Retrieve Components 2 | . 2 . Scanalyzer . | . . . Garrison Access Hacks . | . . . Unauthorized Hacks 7 | . 7 . Terminals 7 | . 7 . Botnet 2 | . 2 . Skim 5 | . 5 . Fabricators . | . . . Repair Stations . | . . . Recycling Units . | . . . Scanalyzers . | . . . Garrison Access . | . . . Data Cores Recovered . | . . . Used . | . . . Hacking Detections 8 | . 8 . Full Trace Events . | . . . Feedback Events . | . . . Feedback Blocked . | . . . Robot Schematics Acquired . | . . . Robots Built . | . . . Authchips . | . . . Time . | . . . Total Robot Build Rating . | . . . Part Schematics Acquired 1 | . 1 . Parts Built . | . . . Authchips . | . . . Time . | . . . Total Part Build Rating . | . . . Part Studies Acquired . | . . . Parts Repaired . | . . . Time . | . . . Parts Recycled . | . . . Recycled Matter . | . . . Retrieved Matter . | . . . Retrieved Components 6 | . 6 . Parts Scanalyzed . | . . . Part Schematics Acquired . | . . . Parts Damaged . | . . . Bothacking | -11 -10 -10 ------------ Run | Yrd Mat Min Used RIF Installer . | . . . Robots Hacked . | . . . Non-combat . | . . . Combat . | . . . Robot Hacks Applied . | . . . Relay Couplers Released . | . . . Fabnet Peak Effective % . | . . . Robots Rewired . | . . . Allies Hacked . | . . . Hacks Repelled . | . . . Allies | -11 -10 -10 -------- Run | Yrd Mat Min Total Allies . | . . . Largest Group . | . . . Highest-Rated Group . | . . . Highest-Rated Ally . | . . . Total Orders . | . . . Ally Attacks . | . . . Total Damage . | . . . Kills . | . . . Allies Corrupted . | . . . Allies Melted . | . . . Intel | -11 -10 -10 ------- Run | Yrd Mat Min Active Infowar (turns) 1725 | 46 1448 231 Seismic 1725 | 46 1448 231 Robot Analysis Total . | . . . Derelict Logs Recovered 1 | . . 1 Drone Launches . | . . . Drone Recoveries . | . . . Exploration | -11 -10 -10 ------------- Run | Yrd Mat Min Turns Passed 2025 | 215 1579 231 Spaces Moved 891 | 101 675 115 Core 4 | 4 . . Treads 887 | 97 675 115 Legs . | . . . Wheels . | . . . Hover . | . . . Flight . | . . . Fastest Speed 50 | 50 160 160 Average Speed 159 | 155 160 160 Slowest Speed 240 | 160 160 240 Overloaded Moves . | . . . Propulsion Burnouts . | . . . Robots Hopped . | . . . Potential Cave-ins . | . . . Cave-ins Triggered . | . . . Exploration Rate (%) 40 | 5 87 28 Regions Visited 2 Branch Regions 1 Pre-discovered Areas 2 | . 2 . Known Exits Taken 1 | . 1 . Unknown Exits Taken 1 | 1 . . Scrap Searched . | . . . Spaces Dug . | . . . Terrain Destroyed 10 | 6 4 . Melee . | . . . Projectile . | . . . AOE 10 | 6 4 . Terrain Rammed . | . . . Walls Destroyed . | . . . Machines Disabled . | . . . Actions | -11 -10 -10 --------- Run | Yrd Mat Min Total 1408 | 136 1129 143 Wait 388 | 10 373 5 Move 889 | 100 674 115 Hop . | . . . Pick Up 30 | 7 22 1 Fast Attach 7 | 7 . . Attach 9 | . 1 8 Detach . | . . . Swap 18 | . 15 3 Drop 18 | 1 16 1 Fire 44 | 11 27 6 Melee 4 | . 1 3 Ram . | . . . Kick . | . . . Crush 1 | . . 1 Escape Stasis . | . . . Rewire . | . . . Trap . | . . . Miscellaneous . | . . . Route ------- -11/Scrapyard -10/Materials (discovered 5 exits: *Mat x3 / *Min / Sub) -10/Mines (discovered 1 exit: *Mat) History --------- Turn | Location | Event 16 | -11/Scrapyard | Discovered new exit (range 16) 216 | -11/Scrapyard | Entered Materials 312 | -10/Materials | Build established: Mutant 449 | -10/Materials | Discovered new exit (range 14) 867 | -10/Materials | Discovered new exit (range 10) 1042 | -10/Materials | Discovered new exit (range 15) 1096 | -10/Materials | Discovered new exit (range 12) 1303 | -10/Materials | Identified exit to Materials 1330 | -10/Materials | Identified exit to Subcaves 1330 | -10/Materials | Learned location of 1 exit from Materials 1406 | -10/Materials | Identified exit to Mines 1471 | -10/Materials | Learned 2 Storage zone layouts 1527 | -10/Materials | Learned location of Mines (-10) 1573 | -10/Materials | Learned Storage trap positions 1651 | -10/Materials | Learned Storage interactive machine intel 1704 | -10/Materials | Learned 4 Materials zone layouts 1795 | -10/Materials | Entered Mines 1795 | -10/Mines | Discovered exit to Materials (range 5) 1838 | -10/Mines | YI-UF0 nonchalantly dropped a Grenade Launcher on the ground 1890 | -10/Mines | Lost 5 parts (1p4w) 1939 | -10/Mines | Met a Derelict bent on vengeance 1974 | -10/Mines | Assembled infested the area 1979 | -10/Mines | Assisted by a Guerilla fighting off Assembled 1998 | -10/Mines | Core integrity fell below 50% 2016 | -10/Mines | Core integrity fell below 20% 2026 | -10/Mines | Destroyed by D-53 Grenadier with Mini Grenade Launcher Last Messages --------------- 01997_ U-05 Engineer destroyed. 02000_ K-01 Serf collects debris. 02001_ Lgt. Treads destroyed. 02001_ System corrupted by crushing effect (+3). 02002_ Lgt. Treads destroyed. 02002_ as-91130 destroyed. 02004_ K-01 Serf collects debris. 02006_ The unstable cave ceiling collapses. 02006_ Ion Engine destroyed. 02006_ as-36708 destroyed. 02008_ Assault Rifle destroyed. 02008_ as-17332 destroyed. 02011_ The unstable cave ceiling collapses. 02014_ Lgt. Treads destroyed. 02014_ Med. Laser destroyed. 02015_ K-01 Serf collects debris. 02017_ The unstable cave ceiling collapses. 02025_ System corrupted: Matter fused (-10). 02026_ Matter Pump disabled. 02026_ Seismic Detector destroyed. Map ----- +----------------------------------------------------+ | ?????????????????????????????????????????????????? | | ????????????????????#????????????????????????????? | | ????????????????????# ???????????????????????????? | | ????????????????????# ??????????????????????????? | | ????????????????????# #?????????????????????????? | | ??????????????????### ##???????????????????????? | | ??????????????????? ???????????????????????? | | ????????????????????# ??????????????????????? | | ?????????????????????# ?????????????????????? | | ??????????????????????# ????????????????????? | | ??????????????????????# ###########????????? | | ????????????????# ##### ? # # ##???????? | | ????????????????# ### ##??????? | | ?????????????????????# % # # ##?????? | | ?????????????????????# # # # #?????? | | ?????????????????????## ## ##????? | | ??????????????????????## # # # #????? | | ???????????????????????#### #????? | | ??????????????????????????# #????? | | ?????????????????????????## # #????? | | ?????????????????????????# # #????? | | ?????????????????????????# a d ### #????? | | ????????????????????????## g ##??## ##????? | | ????????????????????# ### ###### #####?? | | ????????????????????# a d ### | | ????????????????????# a@ " % | | ????????????????????##### """ ##### | | ????????????????????????# """ #???## ## | | ????????????????????????# #????#####" ##? | | ???????????????????????? #?????????" ##?? | | ???????????????????????## ## #????????# #??? | | ????????????????????????###### ???????# #??? | | ?????????????????????????????# ??????# #??? | | ??????????????????????????????# #?????# #??? | | ???????????????????????????????# #?????# #??? | | ???????????????????????????????? ???????# #??? | | ???????????????????????????????? ??????????## #??? | | ???????????????????????????????????????????# #??? | | ???????????????????????????????????????????# ##??? | | ???????????????????????????????????????##??# #???? | | ??????????????????????????????????????## ## ##### | | ??????????????????????????????????????# ## | | ??????????????????????????????????????# #### | | ??????????????????????????????????????## = | | ???????????????????????????????????????# ##### | | ???????????????????????????????????????## ??## | | ????????????????????????????????????????## ??# | | ?????????????????????????????????????????#####??# | | ????????????????????????????????????????????????## | | ???????????????????????????????????? ###????????# | +----------------------------------------------------+ Best States ------------- Heat Dissipation 25 Energy Generation 10 Energy Capacity 250 Matter Stores 300 Matter Capacity 300 Sight Range 16 Terrain Scan Density 10 Evasion (%) 40 Recoil Reduction 2 Item Schematics ----------------- Hcp. Storage Unit | -10/Materials | Hacked Robot Schematics ------------------ None Fabricated ------------ Nothing Repaired ---------- Nothing Studied --------- None Alien Tech Used ----------------- None Achievements -------------- None Challenges ------------ None Game ------ Seed SeismicDeliveryLegs Manual? 0 Play Time 00:12:31 Cumulative 210.5 hours Start 2025.12.03 @ 15:49:25 End 2025.12.03 @ 16:57:19 Sessions 3 Manual Loads 0 Difficulty Rogue Special Mode None Game No. 144 Rogue 144 Adventurer 0 Explorer 0 Win Type - Total 7 Types 5/0/1/1/0/0/0/0/0/0 Lore% 83 Gallery% 76 Achievement% 59 Wizard Run 0 Options --------- Layout 1 ASCII 0 Keyboard 0 Movement Mouse Keybinds 0 Fullscreen 2 Font 24/Smallcaps Map View 50x35 Zoom Use 0% Tactical HUD 1 Map Filters NONE Filters NONE Steam 1 RUN: fd3475ff-8523-4abe-8c52-072fcba1311b